[Event "Titled Tuesday Blitz November 15 Early 2022"]
[White "Grapsa, Georgia"]
[Black "Mejia, Cherry Ann"]
[WhiteFideId "4206436"]
[BlackFideId "5206880"]
[WhiteElo "1877"]
[BlackElo "2007"]
[Result "1-0"]
[Round "11"]
[TimeControl "180+1"]
[Date "2022.11.16"]
[WhiteClock "0:00:10"]
[BlackClock "0:00:01"]

1. e4 {[%clk 0:02:55]}  c5 {[%clk 0:02:59]} 2. Nc3 {[%clk 0:02:52]}  a6 {[%clk 0:02:59]} 3. g3 {[%clk 0:02:51]}  b5 {[%clk 0:02:59]} 4. Bg2 {[%clk 0:02:52]}  Bb7 {[%clk 0:03:00]} 5. d3 {[%clk 0:02:52]}  e6 {[%clk 0:03:00]} 6. f4 {[%clk 0:02:52]}  Nf6 {[%clk 0:03:00]} 7. Nf3 {[%clk 0:02:52]}  d5 {[%clk 0:03:00]} 8. e5 {[%clk 0:02:52]}  Ng8 {[%clk 0:03:01]} 9. Ne2 {[%clk 0:02:52]}  h5 {[%clk 0:03:01]} 10. c3 {[%clk 0:02:53]}  Nh6 {[%clk 0:03:00]} 11. d4 {[%clk 0:02:53]}  Nf5 {[%clk 0:02:59]} 12. Bh3 {[%clk 0:02:44]}  g6 {[%clk 0:02:45]} 13. Bxf5 {[%clk 0:02:28]}  gxf5 {[%clk 0:02:44]} 14. Be3 {[%clk 0:02:28]}  Qb6 {[%clk 0:02:38]} 15. dxc5 {[%clk 0:02:27]}  Bxc5 {[%clk 0:02:38]} 16. Bxc5 {[%clk 0:02:28]}  Qxc5 {[%clk 0:02:38]} 17. Qd4 {[%clk 0:02:27]}  Nd7 {[%clk 0:02:13]} 18. O-O-O {[%clk 0:02:18]}  Rc8 {[%clk 0:02:12]} 19. Kb1 {[%clk 0:02:07]}  Nb6 {[%clk 0:02:03]} 20. Qxc5 {[%clk 0:01:34]}  Rxc5 {[%clk 0:02:03]} 21. Ned4 {[%clk 0:01:35]}  Nc4 {[%clk 0:02:00]} 22. Rhe1 {[%clk 0:01:23]}  Ke7 {[%clk 0:01:59]} 23. Re2 {[%clk 0:01:12]}  Rhc8 {[%clk 0:01:59]} 24. Ne1 {[%clk 0:01:07]}  R5c7 {[%clk 0:01:31]} 25. Nef3 {[%clk 0:00:51]}  Bc6 {[%clk 0:01:30]} 26. Kc2 {[%clk 0:00:37]}  Bd7 {[%clk 0:01:30]} 27. Kd3 {[%clk 0:00:34]}  a5 {[%clk 0:01:27]} 28. Rc2 {[%clk 0:00:32]}  Nb6 {[%clk 0:01:15]} 29. Ke2 {[%clk 0:00:31]}  b4 {[%clk 0:01:14]} 30. Rdc1 {[%clk 0:00:30]}  Rc4 {[%clk 0:00:42]} 31. cxb4 {[%clk 0:00:26]}  axb4 {[%clk 0:00:36]} 32. b3 {[%clk 0:00:22]}  Rc3 {[%clk 0:00:36]} 33. Rxc3 {[%clk 0:00:21]}  bxc3 {[%clk 0:00:33]} 34. Kd3 {[%clk 0:00:20]}  Ra8 {[%clk 0:00:31]} 35. a4 {[%clk 0:00:20]}  Nxa4 {[%clk 0:00:19]} 36. bxa4 {[%clk 0:00:19]}  Rxa4 {[%clk 0:00:17]} 37. Rxc3 {[%clk 0:00:19]}  Ra2 {[%clk 0:00:15]} 38. Rc2 {[%clk 0:00:18]}  Ra3+ {[%clk 0:00:15]} 39. Ke2 {[%clk 0:00:17]}  Ra1 {[%clk 0:00:13]} 40. Kf2 {[%clk 0:00:17]}  Ra3 {[%clk 0:00:13]} 41. Kg2 {[%clk 0:00:17]}  Ra8 {[%clk 0:00:08]} 42. Kh3 {[%clk 0:00:17]}  Rh8 {[%clk 0:00:09]} 43. Kh4 {[%clk 0:00:18]}  f6 {[%clk 0:00:08]} 44. exf6+ {[%clk 0:00:16]}  Kxf6 {[%clk 0:00:09]} 45. Ne5 {[%clk 0:00:12]}  Be8 {[%clk 0:00:08]} 46. Rc7 {[%clk 0:00:11]}  Rg8 {[%clk 0:00:07]} 47. Kh3 {[%clk 0:00:09]}  h4 {[%clk 0:00:04]} 48. Ra7 {[%clk 0:00:06]}  hxg3 {[%clk 0:00:04]} 49. hxg3 {[%clk 0:00:07]}  Rh8+ {[%clk 0:00:04]} 50. Kg2 {[%clk 0:00:08]}  Rg8 {[%clk 0:00:02]} 51. Ra6 {[%clk 0:00:08]}  Bf7 {[%clk 0:00:01]} 52. Nxf7 {[%clk 0:00:08]}  Kxf7 {[%clk 0:00:02]} 53. Rxe6 {[%clk 0:00:09]}  Rc8 {[%clk 0:00:01]} 54. Re5 {[%clk 0:00:09]}  Rc4 {[%clk 0:00:01]} 55. Rxd5 {[%clk 0:00:10]} 1-0


[Site "https://www.chess.com"]

[Event "Titled Tuesday Blitz November 15 Early 2022"]
[White "Gurevich, Dmitry"]
[Black "Saya, Ethan"]
[WhiteFideId "2000407"]
[BlackFideId "26095181"]
[WhiteElo "2506"]
[BlackElo "2162"]
[Result "1-0"]
[Round "11"]
[TimeControl "180+1"]
[Date "2022.11.16"]
[WhiteClock "0:00:22"]
[BlackClock "0:00:01"]

1. d4 {[%clk 0:03:00]}  Nf6 {[%clk 0:02:59]} 2. c4 {[%clk 0:02:59]}  e6 {[%clk 0:02:59]} 3. Nf3 {[%clk 0:02:56]}  d5 {[%clk 0:02:59]} 4. Nc3 {[%clk 0:02:56]}  c6 {[%clk 0:02:59]} 5. e3 {[%clk 0:02:54]}  Nbd7 {[%clk 0:02:58]} 6. Qc2 {[%clk 0:02:54]}  Bd6 {[%clk 0:02:57]} 7. b3 {[%clk 0:02:54]}  Qe7 {[%clk 0:02:49]} 8. Be2 {[%clk 0:02:53]}  e5 {[%clk 0:02:41]} 9. cxd5 {[%clk 0:02:52]}  cxd5 {[%clk 0:02:40]} 10. Nb5 {[%clk 0:02:41]}  Bb4+ {[%clk 0:02:34]} 11. Bd2 {[%clk 0:02:40]}  O-O {[%clk 0:02:34]} 12. dxe5 {[%clk 0:02:32]}  Nxe5 {[%clk 0:02:33]} 13. Nxe5 {[%clk 0:02:24]}  Qxe5 {[%clk 0:02:32]} 14. O-O {[%clk 0:02:19]}  Bf5 {[%clk 0:02:17]} 15. Qd1 {[%clk 0:02:02]}  Bxd2 {[%clk 0:02:07]} 16. Qxd2 {[%clk 0:02:02]}  a6 {[%clk 0:01:50]} 17. Qd4 {[%clk 0:02:01]}  Qxd4 {[%clk 0:01:43]} 18. Nxd4 {[%clk 0:02:00]}  Bd7 {[%clk 0:01:34]} 19. f3 {[%clk 0:01:52]}  Rfc8 {[%clk 0:01:30]} 20. Rfc1 {[%clk 0:01:49]}  Kf8 {[%clk 0:01:29]} 21. Kf2 {[%clk 0:01:47]}  Ke7 {[%clk 0:01:28]} 22. g4 {[%clk 0:01:47]}  Kd6 {[%clk 0:01:20]} 23. g5 {[%clk 0:01:35]}  Ng8 {[%clk 0:01:12]} 24. h4 {[%clk 0:01:29]}  Ne7 {[%clk 0:01:12]} 25. Bd3 {[%clk 0:01:25]}  g6 {[%clk 0:01:09]} 26. Kg3 {[%clk 0:01:21]}  Nc6 {[%clk 0:00:52]} 27. Kf4 {[%clk 0:01:15]}  Ne5 {[%clk 0:00:26]} 28. Be2 {[%clk 0:01:13]}  Rxc1 {[%clk 0:00:19]} 29. Rxc1 {[%clk 0:01:12]}  Rf8 {[%clk 0:00:20]} 30. Kg3 {[%clk 0:01:05]}  f6 {[%clk 0:00:19]} 31. gxf6 {[%clk 0:00:56]}  Rxf6 {[%clk 0:00:20]} 32. a4 {[%clk 0:00:44]}  Nc6 {[%clk 0:00:18]} 33. Rd1 {[%clk 0:00:39]}  Ne7 {[%clk 0:00:14]} 34. a5 {[%clk 0:00:36]}  Ke5 {[%clk 0:00:09]} 35. Rc1 {[%clk 0:00:34]}  Kd6 {[%clk 0:00:09]} 36. b4 {[%clk 0:00:31]}  Nf5+ {[%clk 0:00:09]} 37. Nxf5+ {[%clk 0:00:30]}  Bxf5 {[%clk 0:00:10]} 38. Rd1 {[%clk 0:00:26]}  Ke5 {[%clk 0:00:06]} 39. f4+ {[%clk 0:00:24]}  Kd6 {[%clk 0:00:06]} 40. Bf3 {[%clk 0:00:23]}  Be6 {[%clk 0:00:03]} 41. Bxd5 {[%clk 0:00:22]}  Bxd5 {[%clk 0:00:02]} 42. e4 {[%clk 0:00:22]}  Kc6 {[%clk 0:00:02]} 43. Rxd5 {[%clk 0:00:22]}  Re6 {[%clk 0:00:01]} 44. Kf3 {[%clk 0:00:22]}  Rf6 {[%clk 0:00:01]} 45. h5 {[%clk 0:00:22]} 1-0


[Site "https://www.chess.com"]

[Event "Titled Tuesday Blitz November 15 Early 2022"]
[White "Hajiyev, Kanan"]
[Black "Kaidanov, Gregory"]
[WhiteFideId "13404148"]
[BlackFideId "2008564"]
[WhiteElo "2118"]
[BlackElo "2610"]
[Result "0-1"]
[Round "11"]
[TimeControl "180+1"]
[Date "2022.11.16"]
[WhiteClock "0:00:07"]
[BlackClock "0:01:07"]

1. d4 {[%clk 0:02:51]}  e6 {[%clk 0:03:00]} 2. Nf3 {[%clk 0:02:51]}  c5 {[%clk 0:02:59]} 3. e3 {[%clk 0:02:50]}  d5 {[%clk 0:02:58]} 4. c4 {[%clk 0:02:49]}  Nf6 {[%clk 0:02:57]} 5. Nc3 {[%clk 0:02:49]}  a6 {[%clk 0:02:56]} 6. cxd5 {[%clk 0:02:48]}  exd5 {[%clk 0:02:56]} 7. Be2 {[%clk 0:02:39]}  Nc6 {[%clk 0:02:55]} 8. O-O {[%clk 0:02:39]}  c4 {[%clk 0:02:55]} 9. a4 {[%clk 0:02:36]}  Bd6 {[%clk 0:02:53]} 10. b3 {[%clk 0:02:33]}  cxb3 {[%clk 0:02:52]} 11. Qxb3 {[%clk 0:02:34]}  O-O {[%clk 0:02:52]} 12. Ba3 {[%clk 0:02:25]}  Na5 {[%clk 0:02:44]} 13. Qc2 {[%clk 0:02:20]}  Bg4 {[%clk 0:02:43]} 14. Bxd6 {[%clk 0:02:17]}  Qxd6 {[%clk 0:02:42]} 15. Ne5 {[%clk 0:02:17]}  Bxe2 {[%clk 0:02:42]} 16. Nxe2 {[%clk 0:02:12]}  Rac8 {[%clk 0:02:39]} 17. Qf5 {[%clk 0:02:12]}  Nb3 {[%clk 0:02:32]} 18. Ra2 {[%clk 0:02:03]}  g6 {[%clk 0:02:31]} 19. Qf4 {[%clk 0:02:01]}  Qe6 {[%clk 0:02:19]} 20. Qh6 {[%clk 0:01:57]}  Rc7 {[%clk 0:01:53]} 21. Nf4 {[%clk 0:01:52]}  Qd6 {[%clk 0:01:53]} 22. h4 {[%clk 0:01:42]}  Rfc8 {[%clk 0:01:50]} 23. h5 {[%clk 0:01:28]}  Rc1 {[%clk 0:01:48]} 24. Rxc1 {[%clk 0:01:20]}  Rxc1+ {[%clk 0:01:47]} 25. Kh2 {[%clk 0:01:20]}  Qxe5 {[%clk 0:01:47]} 26. dxe5 {[%clk 0:00:42]}  Ng4+ {[%clk 0:01:46]} 27. Kg3 {[%clk 0:00:43]}  Nxh6 {[%clk 0:01:46]} 28. Rb2 {[%clk 0:00:37]}  Nc5 {[%clk 0:01:40]} 29. Nxd5 {[%clk 0:00:35]}  Kg7 {[%clk 0:01:29]} 30. hxg6 {[%clk 0:00:33]}  hxg6 {[%clk 0:01:28]} 31. a5 {[%clk 0:00:25]}  Nf5+ {[%clk 0:01:22]} 32. Kf3 {[%clk 0:00:24]}  Nd3 {[%clk 0:01:19]} 33. Rxb7 {[%clk 0:00:20]}  Nxe5+ {[%clk 0:01:17]} 34. Ke4 {[%clk 0:00:20]}  Nc4 {[%clk 0:01:13]} 35. Rc7 {[%clk 0:00:12]}  Ncd6+ {[%clk 0:01:10]} 36. Kd3 {[%clk 0:00:07]}  Rd1+ {[%clk 0:01:07]} 0-1


[Site "https://www.chess.com"]

[Event "Titled Tuesday Blitz November 15 Early 2022"]
[White "Harsha Bharathakoti"]
[Black "Buksa, Nataliya"]
[WhiteFideId "5078776"]
[BlackFideId "14123622"]
[WhiteElo "2523"]
[BlackElo "2313"]
[Result "1-0"]
[Round "11"]
[TimeControl "180+1"]
[Date "2022.11.15"]
[WhiteClock "0:00:20"]
[BlackClock "0:00:02"]

1. e4 {[%clk 0:03:00]}  c5 {[%clk 0:02:59]} 2. Nf3 {[%clk 0:03:01]}  Nc6 {[%clk 0:03:00]} 3. Bb5 {[%clk 0:03:01]}  g6 {[%clk 0:02:59]} 4. Bxc6 {[%clk 0:03:01]}  bxc6 {[%clk 0:02:59]} 5. O-O {[%clk 0:03:01]}  Bg7 {[%clk 0:03:00]} 6. c3 {[%clk 0:03:00]}  d6 {[%clk 0:03:00]} 7. Re1 {[%clk 0:02:58]}  Qc7 {[%clk 0:02:59]} 8. d4 {[%clk 0:02:58]}  cxd4 {[%clk 0:02:59]} 9. cxd4 {[%clk 0:02:59]}  Nf6 {[%clk 0:02:59]} 10. h3 {[%clk 0:02:56]}  O-O {[%clk 0:02:59]} 11. Bf4 {[%clk 0:02:55]}  c5 {[%clk 0:02:35]} 12. dxc5 {[%clk 0:02:28]}  Qxc5 {[%clk 0:02:34]} 13. Nc3 {[%clk 0:02:28]}  Bb7 {[%clk 0:02:30]} 14. e5 {[%clk 0:02:25]}  dxe5 {[%clk 0:02:28]} 15. Bxe5 {[%clk 0:02:16]}  Rfd8 {[%clk 0:02:10]} 16. Qe2 {[%clk 0:02:16]}  Rac8 {[%clk 0:02:08]} 17. Rac1 {[%clk 0:02:06]}  Qa5 {[%clk 0:02:07]} 18. Nd4 {[%clk 0:02:00]}  Nd5 {[%clk 0:01:55]} 19. Bxg7 {[%clk 0:01:49]}  Kxg7 {[%clk 0:01:55]} 20. Qe5+ {[%clk 0:01:15]}  Kg8 {[%clk 0:01:35]} 21. Ne4 {[%clk 0:00:38]}  Rxc1 {[%clk 0:01:19]} 22. Rxc1 {[%clk 0:00:39]}  Qxa2 {[%clk 0:01:18]} 23. Nf5 {[%clk 0:00:39]}  gxf5 {[%clk 0:01:05]} 24. Ng3 {[%clk 0:00:33]}  Qa6 {[%clk 0:00:39]} 25. Nxf5 {[%clk 0:00:27]}  Qf6 {[%clk 0:00:38]} 26. Qg3+ {[%clk 0:00:27]}  Kh8 {[%clk 0:00:35]} 27. Qf3 {[%clk 0:00:27]}  e6 {[%clk 0:00:28]} 28. Qb3 {[%clk 0:00:28]}  Qxf5 {[%clk 0:00:23]} 29. Qxb7 {[%clk 0:00:28]}  Qg5 {[%clk 0:00:22]} 30. Re1 {[%clk 0:00:25]}  Rg8 {[%clk 0:00:21]} 31. g3 {[%clk 0:00:25]}  Qh5 {[%clk 0:00:19]} 32. Qxa7 {[%clk 0:00:24]}  Rg6 {[%clk 0:00:15]} 33. Qd4+ {[%clk 0:00:21]}  Nf6 {[%clk 0:00:03]} 34. h4 {[%clk 0:00:21]}  Kg7 {[%clk 0:00:03]} 35. b4 {[%clk 0:00:21]}  Qd5 {[%clk 0:00:04]} 36. Qc3 {[%clk 0:00:21]}  Rg4 {[%clk 0:00:03]} 37. Re5 {[%clk 0:00:21]}  Qc4 {[%clk 0:00:02]} 38. Rg5+ {[%clk 0:00:20]} 1-0


[Site "https://www.chess.com"]

[Event "Titled Tuesday Blitz November 15 Early 2022"]
[White "Hoffmann, Asa"]
[Black "Callejas Rojas, Francisco Miguel"]
[WhiteFideId "2001470"]
[BlackFideId "32072503"]
[WhiteElo "2117"]
[BlackElo "2274"]
[Result "1-0"]
[Round "11"]
[TimeControl "180+1"]
[Date "2022.11.16"]
[WhiteClock "0:00:14"]
[BlackClock "0:00:02"]

1. d4 {[%clk 0:02:58]}  Nf6 {[%clk 0:02:58]} 2. Bg5 {[%clk 0:02:56]}  g6 {[%clk 0:02:57]} 3. Nc3 {[%clk 0:02:54]}  Bg7 {[%clk 0:02:56]} 4. e4 {[%clk 0:02:53]}  d6 {[%clk 0:02:42]} 5. f3 {[%clk 0:02:53]}  c6 {[%clk 0:02:38]} 6. Qd2 {[%clk 0:02:53]}  b5 {[%clk 0:02:36]} 7. Bd3 {[%clk 0:02:47]}  Nbd7 {[%clk 0:02:33]} 8. Nge2 {[%clk 0:02:46]}  a6 {[%clk 0:02:30]} 9. a4 {[%clk 0:02:46]}  Bb7 {[%clk 0:02:27]} 10. O-O {[%clk 0:02:39]}  O-O {[%clk 0:02:21]} 11. Bh6 {[%clk 0:02:39]}  e5 {[%clk 0:02:19]} 12. Bxg7 {[%clk 0:02:38]}  Kxg7 {[%clk 0:02:19]} 13. f4 {[%clk 0:02:13]}  Qb6 {[%clk 0:02:05]} 14. fxe5 {[%clk 0:01:54]}  dxe5 {[%clk 0:02:06]} 15. Qe3 {[%clk 0:01:50]}  Ng4 {[%clk 0:01:50]} 16. Qg3 {[%clk 0:01:47]}  exd4 {[%clk 0:01:42]} 17. Qxg4 {[%clk 0:01:46]}  dxc3+ {[%clk 0:01:42]} 18. Kh1 {[%clk 0:01:46]}  cxb2 {[%clk 0:01:36]} 19. Rab1 {[%clk 0:01:44]}  Ne5 {[%clk 0:01:32]} 20. Qg3 {[%clk 0:01:41]}  Rae8 {[%clk 0:01:20]} 21. Rxb2 {[%clk 0:01:38]}  c5 {[%clk 0:00:53]} 22. Nf4 {[%clk 0:01:18]}  c4 {[%clk 0:00:46]} 23. Be2 {[%clk 0:01:14]}  Qd4 {[%clk 0:00:22]} 24. c3 {[%clk 0:01:05]}  Qd6 {[%clk 0:00:14]} 25. axb5 {[%clk 0:00:59]}  Kh8 {[%clk 0:00:12]} 26. bxa6 {[%clk 0:00:47]}  Bxe4 {[%clk 0:00:12]} 27. Qh4 {[%clk 0:00:37]}  Qxa6 {[%clk 0:00:11]} 28. Nh3 {[%clk 0:00:30]}  Bf5 {[%clk 0:00:11]} 29. Ng5 {[%clk 0:00:29]}  h5 {[%clk 0:00:11]} 30. Bxh5 {[%clk 0:00:28]}  gxh5 {[%clk 0:00:03]} 31. Qxh5+ {[%clk 0:00:27]}  Kg8 {[%clk 0:00:03]} 32. Rbf2 {[%clk 0:00:17]}  Bg6 {[%clk 0:00:02]} 33. Qh6 {[%clk 0:00:15]}  Qa2 {[%clk 0:00:02]} 34. Rxa2 {[%clk 0:00:14]} 1-0


[Site "https://www.chess.com"]

[Event "Titled Tuesday Blitz November 15 Early 2022"]
[White "Ivic, Velimir"]
[Black "Fedoseev, Vladimir"]
[WhiteFideId "950122"]
[BlackFideId "24130737"]
[WhiteElo "2625"]
[BlackElo "2726"]
[Result "0-1"]
[Round "11"]
[TimeControl "180+1"]
[Date "2022.11.15"]
[WhiteClock "0:00:09"]
[BlackClock "0:00:14"]

1. e4 {[%clk 0:03:00]}  c6 {[%clk 0:02:53]} 2. d4 {[%clk 0:03:00]}  d5 {[%clk 0:02:53]} 3. Nd2 {[%clk 0:03:01]}  dxe4 {[%clk 0:02:51]} 4. Nxe4 {[%clk 0:03:02]}  Nd7 {[%clk 0:02:51]} 5. Ng5 {[%clk 0:03:00]}  Ngf6 {[%clk 0:02:45]} 6. Bd3 {[%clk 0:03:00]}  g6 {[%clk 0:02:44]} 7. N1f3 {[%clk 0:02:58]}  Bg7 {[%clk 0:02:43]} 8. Qe2 {[%clk 0:02:43]}  O-O {[%clk 0:02:41]} 9. O-O {[%clk 0:02:36]}  c5 {[%clk 0:02:40]} 10. dxc5 {[%clk 0:02:29]}  Nxc5 {[%clk 0:02:39]} 11. Bc4 {[%clk 0:02:29]}  h6 {[%clk 0:02:30]} 12. Nxf7 {[%clk 0:02:28]}  Rxf7 {[%clk 0:02:29]} 13. Bxf7+ {[%clk 0:02:23]}  Kxf7 {[%clk 0:02:30]} 14. Qc4+ {[%clk 0:02:19]}  Qd5 {[%clk 0:02:24]} 15. Ne5+ {[%clk 0:02:03]}  Kg8 {[%clk 0:02:24]} 16. Qxd5+ {[%clk 0:01:48]}  Nxd5 {[%clk 0:02:24]} 17. Nxg6 {[%clk 0:01:49]}  Kf7 {[%clk 0:01:50]} 18. Nf4 {[%clk 0:01:47]}  Nb4 {[%clk 0:01:30]} 19. Be3 {[%clk 0:01:44]}  Na4 {[%clk 0:01:29]} 20. c3 {[%clk 0:01:39]}  Nc2 {[%clk 0:01:29]} 21. Rac1 {[%clk 0:01:40]}  Bf5 {[%clk 0:01:29]} 22. g4 {[%clk 0:01:27]}  Bh7 {[%clk 0:01:24]} 23. Nh5 {[%clk 0:01:08]}  Nxb2 {[%clk 0:01:15]} 24. Nxg7 {[%clk 0:01:07]}  Kxg7 {[%clk 0:01:16]} 25. Bd4+ {[%clk 0:00:44]}  Kf7 {[%clk 0:01:12]} 26. Rb1 {[%clk 0:00:39]}  Nxd4 {[%clk 0:00:30]} 27. Rxb2 {[%clk 0:00:39]}  Nf3+ {[%clk 0:00:31]} 28. Kg2 {[%clk 0:00:40]}  Be4 {[%clk 0:00:31]} 29. Kg3 {[%clk 0:00:40]}  Rd8 {[%clk 0:00:26]} 30. Rb4 {[%clk 0:00:41]}  Rd3 {[%clk 0:00:21]} 31. Kf4 {[%clk 0:00:24]}  Bc6 {[%clk 0:00:17]} 32. Rc1 {[%clk 0:00:12]}  Nh4 {[%clk 0:00:14]} 33. Ke5 {[%clk 0:00:09]}  Ng6+ {[%clk 0:00:14]} 0-1


[Site "https://www.chess.com"]

[Event "Titled Tuesday Blitz November 15 Early 2022"]
[White "Kaminski, Victor"]
[Black "Osiecki, Stanislaw"]
[WhiteFideId "1131630"]
[BlackFideId "1102990"]
[WhiteElo "2181"]
[BlackElo "2088"]
[Result "0-1"]
[Round "11"]
[TimeControl "180+1"]
[Date "2022.11.16"]
[WhiteClock "0:00:23"]
[BlackClock "0:01:13"]

1. e4 {[%clk 0:03:00]}  e6 {[%clk 0:02:56]} 2. Qe2 {[%clk 0:02:59]}  c5 {[%clk 0:02:55]} 3. Nf3 {[%clk 0:02:58]}  Nc6 {[%clk 0:02:52]} 4. g3 {[%clk 0:02:58]}  Nd4 {[%clk 0:02:52]} 5. Nxd4 {[%clk 0:02:56]}  cxd4 {[%clk 0:02:53]} 6. Bg2 {[%clk 0:02:57]}  Ne7 {[%clk 0:02:53]} 7. O-O {[%clk 0:02:57]}  Nc6 {[%clk 0:02:53]} 8. d3 {[%clk 0:02:57]}  Be7 {[%clk 0:02:53]} 9. f4 {[%clk 0:02:52]}  O-O {[%clk 0:02:53]} 10. Nd2 {[%clk 0:02:34]}  b5 {[%clk 0:02:53]} 11. e5 {[%clk 0:02:33]}  Bb7 {[%clk 0:02:52]} 12. Ne4 {[%clk 0:02:30]}  Nb4 {[%clk 0:02:46]} 13. a3 {[%clk 0:02:29]}  Nd5 {[%clk 0:02:45]} 14. Bd2 {[%clk 0:02:15]}  Qb6 {[%clk 0:02:43]} 15. f5 {[%clk 0:02:11]}  exf5 {[%clk 0:02:41]} 16. Rxf5 {[%clk 0:02:12]}  Ne3 {[%clk 0:02:29]} 17. Bxe3 {[%clk 0:02:10]}  dxe3 {[%clk 0:02:29]} 18. c3 {[%clk 0:02:06]}  Bxe4 {[%clk 0:02:25]} 19. Bxe4 {[%clk 0:02:04]}  Rac8 {[%clk 0:02:17]} 20. d4 {[%clk 0:02:03]}  d6 {[%clk 0:02:14]} 21. Qxe3 {[%clk 0:01:52]}  dxe5 {[%clk 0:02:12]} 22. Rxe5 {[%clk 0:01:51]}  Bf6 {[%clk 0:02:10]} 23. Rf5 {[%clk 0:01:47]}  Rfe8 {[%clk 0:02:09]} 24. Qf3 {[%clk 0:01:45]}  Bxd4+ {[%clk 0:02:04]} 25. Kg2 {[%clk 0:01:42]}  Bf6 {[%clk 0:01:58]} 26. Rf1 {[%clk 0:01:38]}  Qe6 {[%clk 0:01:53]} 27. Bd5 {[%clk 0:01:27]}  Qe2+ {[%clk 0:01:52]} 28. Qxe2 {[%clk 0:01:22]}  Rxe2+ {[%clk 0:01:51]} 29. R5f2 {[%clk 0:01:22]}  Rxf2+ {[%clk 0:01:51]} 30. Rxf2 {[%clk 0:01:23]}  Kf8 {[%clk 0:01:41]} 31. a4 {[%clk 0:01:19]}  bxa4 {[%clk 0:01:37]} 32. c4 {[%clk 0:01:20]}  Rb8 {[%clk 0:01:35]} 33. c5 {[%clk 0:01:17]}  Rxb2 {[%clk 0:01:34]} 34. Rxb2 {[%clk 0:01:14]}  Bxb2 {[%clk 0:01:33]} 35. c6 {[%clk 0:01:14]}  Be5 {[%clk 0:01:32]} 36. Kf3 {[%clk 0:01:12]}  f5 {[%clk 0:01:29]} 37. Be6 {[%clk 0:01:05]}  a3 {[%clk 0:01:27]} 38. Ke3 {[%clk 0:00:56]}  Ke7 {[%clk 0:01:25]} 39. Ba2 {[%clk 0:00:53]}  Kd6 {[%clk 0:01:22]} 40. Kf3 {[%clk 0:00:47]}  Kxc6 {[%clk 0:01:19]} 41. h4 {[%clk 0:00:45]}  Kc5 {[%clk 0:01:16]} 42. Bg8 {[%clk 0:00:41]}  Kb4 {[%clk 0:01:14]} 43. Ke3 {[%clk 0:00:28]}  Kc3 {[%clk 0:01:14]} 44. Bxh7 {[%clk 0:00:23]}  a2 {[%clk 0:01:13]} 0-1


[Site "https://www.chess.com"]

[Event "Titled Tuesday Blitz November 15 Early 2022"]
[White "Kiseljova, Marya"]
[Black "Marcolino, Daniel Mattos"]
[WhiteFideId "4155009"]
[BlackFideId "2106841"]
[WhiteElo "1907"]
[BlackElo "2107"]
[Result "1-0"]
[Round "11"]
[TimeControl "180+1"]
[Date "2022.11.16"]
[WhiteClock "0:01:27"]
[BlackClock "0:00:58"]

1. d4 {[%clk 0:02:59]}  Nf6 {[%clk 0:02:59]} 2. c4 {[%clk 0:02:58]}  e6 {[%clk 0:03:00]} 3. g3 {[%clk 0:02:57]}  d5 {[%clk 0:02:58]} 4. Nf3 {[%clk 0:02:58]}  dxc4 {[%clk 0:02:57]} 5. Bg2 {[%clk 0:02:57]}  a6 {[%clk 0:02:56]} 6. O-O {[%clk 0:02:56]}  Nc6 {[%clk 0:02:54]} 7. e3 {[%clk 0:02:34]}  Rb8 {[%clk 0:02:53]} 8. a4 {[%clk 0:02:29]}  Be7 {[%clk 0:02:39]} 9. Qc2 {[%clk 0:02:29]}  b5 {[%clk 0:02:39]} 10. axb5 {[%clk 0:02:24]}  axb5 {[%clk 0:02:40]} 11. b3 {[%clk 0:02:23]}  O-O {[%clk 0:02:33]} 12. bxc4 {[%clk 0:02:21]}  bxc4 {[%clk 0:02:33]} 13. Qxc4 {[%clk 0:02:21]}  Bd7 {[%clk 0:02:21]} 14. Nc3 {[%clk 0:02:15]}  Rb4 {[%clk 0:02:20]} 15. Qe2 {[%clk 0:02:08]}  Qb8 {[%clk 0:02:19]} 16. Ba3 {[%clk 0:02:07]}  Rb3 {[%clk 0:02:17]} 17. Bxe7 {[%clk 0:02:05]}  Nxe7 {[%clk 0:02:18]} 18. Rfc1 {[%clk 0:02:02]}  Qb4 {[%clk 0:01:58]} 19. Na2 {[%clk 0:01:55]}  Qb6 {[%clk 0:01:52]} 20. Qc4 {[%clk 0:01:47]}  Ra8 {[%clk 0:01:06]} 21. Nd2 {[%clk 0:01:28]}  Ra4 {[%clk 0:01:01]} 22. Qxb3 {[%clk 0:01:27]}  Qxb3 {[%clk 0:00:58]} 23. Nxb3 {[%clk 0:01:27]} 1-0


[Site "https://www.chess.com"]